[Event "Elitserien 2019/2020, round 7-9"]
[Site "Elite stadshotellet, Kungsgatan 6, Vaxjo, Sweden"]
[Date "2020.10.18"]
[Round "3.14"]
[White "Stavenberg, Karl"]
[Black "Norberg, Erik"]
[Result "1-0"]
[TimeControl "90 minutes for 40 moves + 30 minutes for the rest of the game + 30 seconds per move from move one."]
[BlackTitle "CM"]
[WhiteFideId "1753630"]
[BlackFideId "1707965"]
[WhiteElo "2043"]
[BlackElo "2241"]

1. d4 {[%clk 01:30:55]} {[%emt 00:00:03]} g6 {[%clk 01:30:37]} {[%emt
00:00:23]} 2. c4 {[%clk 01:30:48]} {[%emt 00:00:37]} Bg7 {[%clk 01:30:18]}
{[%emt 00:00:50]} 3. Nf3 {[%clk 01:30:29]} {[%emt 00:00:49]} Nf6 {[%clk
01:28:50]} {[%emt 00:01:58]} 4. Nc3 {[%clk 01:30:49]} {[%emt 00:00:11]} d6
{[%clk 01:28:25]} {[%emt 00:00:54]} 5. Bg5 {[%clk 01:29:33]} {[%emt 00:01:46]}
c6 {[%clk 01:25:48]} {[%emt 00:03:07]} 6. e4 {[%clk 01:13:00]} {[%emt
00:17:03]} Qc7 {[%clk 01:24:33]} {[%emt 00:01:45]} 7. h3 {[%clk 01:11:30]}
{[%emt 00:02:01]} Nbd7 {[%clk 01:13:38]} {[%emt 00:11:24]} 8. Be2 {[%clk
01:10:11]} {[%emt 00:01:50]} e5 {[%clk 01:09:37]} {[%emt 00:04:31]} 9. d5
{[%clk 01:08:25]} {[%emt 00:02:15]} Nc5 {[%clk 01:06:13]} {[%emt 00:03:55]} 10.
Nd2 {[%clk 01:07:39]} {[%emt 00:01:16]} a5 {[%clk 01:05:29]} {[%emt 00:01:13]}
11. b3 {[%clk 01:07:12]} {[%emt 00:00:57]} O-O {[%clk 01:04:13]} {[%emt
00:01:46]} 12. O-O {[%clk 01:01:31]} {[%emt 00:06:12]} Ne8 {[%clk 01:00:14]}
{[%emt 00:04:28]} 13. a3 {[%clk 00:54:18]} {[%emt 00:07:44]} f5 {[%clk
00:55:06]} {[%emt 00:05:37]} 14. Be3 {[%clk 00:43:32]} {[%emt 00:11:16]} Na6
{[%clk 00:35:00]} {[%emt 00:20:36]} 15. f3 {[%clk 00:43:18]} {[%emt 00:00:45]}
c5 {[%clk 00:33:52]} {[%emt 00:01:38]} 16. Qc2 {[%clk 00:38:02]} {[%emt
00:05:47]} f4 {[%clk 00:24:17]} {[%emt 00:10:05]} 17. Bf2 {[%clk 00:38:25]}
{[%emt 00:00:06]} g5 {[%clk 00:23:54]} {[%emt 00:00:53]} 18. Rfb1 {[%clk
00:38:11]} {[%emt 00:00:43]} h5 {[%clk 00:22:41]} {[%emt 00:01:44]} 19. Nf1
{[%clk 00:37:23]} {[%emt 00:01:18]} g4 {[%clk 00:16:49]} {[%emt 00:06:22]} 20.
fxg4 {[%clk 00:37:10]} {[%emt 00:00:44]} hxg4 {[%clk 00:17:10]} {[%emt
00:00:08]} 21. Bxg4 {[%clk 00:37:26]} {[%emt 00:00:14]} Bxg4 {[%clk 00:17:21]}
{[%emt 00:00:20]} 22. hxg4 {[%clk 00:37:49]} {[%emt 00:00:06]} Bf6 {[%clk
00:15:48]} {[%emt 00:02:03]} 23. Qd3 {[%clk 00:34:34]} {[%emt 00:03:46]} Qg7
{[%clk 00:12:30]} {[%emt 00:03:47]} 24. Qh3 {[%clk 00:34:12]} {[%emt 00:00:53]}
Kf7 {[%clk 00:12:09]} {[%emt 00:00:50]} 25. g5 {[%clk 00:30:03]} {[%emt
00:04:39]} Qxg5 {[%clk 00:11:47]} {[%emt 00:00:53]} 26. Qe6+ {[%clk 00:29:45]}
{[%emt 00:00:48]} Kg7 {[%clk 00:10:38]} {[%emt 00:01:38]} 27. Nh2 {[%clk
00:29:37]} {[%emt 00:00:38]} Rg8 {[%clk 00:07:22]} {[%emt 00:03:47]} 28. Nf3
{[%clk 00:28:47]} {[%emt 00:01:20]} Qg6 {[%emt 00:01:43]} 29. Kf1 {[%clk
00:26:25]} {[%emt 00:02:51]} Nac7 {[%clk 00:05:30]} {[%emt 00:01:09]} 30. Qf5
{[%clk 00:23:13]} {[%emt 00:03:42]} Qxf5 {[%clk 00:04:41]} {[%emt 00:01:19]} 31.
exf5 {[%clk 00:23:37]} {[%emt 00:00:05]} Kf7 {[%clk 00:04:51]} {[%emt
00:00:21]} 32. Ne4 {[%clk 00:23:45]} {[%emt 00:00:22]} Be7 {[%clk 00:04:06]}
{[%emt 00:01:15]} 33. b4 {[%clk 00:21:54]} {[%emt 00:02:21]} b6 {[%clk
00:02:28]} {[%emt 00:02:08]} 34. bxc5 {[%clk 00:21:39]} {[%emt 00:00:45]} bxc5
{[%clk 00:02:46]} {[%emt 00:00:12]} 35. Rb7 {[%clk 00:21:39]} {[%emt 00:00:29]}
Rc8 {[%clk 00:02:23]} {[%emt 00:00:54]} 36. Rab1 {[%clk 00:21:07]} {[%emt
00:01:02]} Rh8 {[%clk 00:02:23]} {[%emt 00:00:30]} 37. Ke2 {[%clk 00:15:32]}
{[%emt 00:06:05]} Rh5 {[%clk 00:01:56]} {[%emt 00:00:57]} 38. g4 {[%clk
00:15:13]} {[%emt 00:00:48]} fxg3 {[%clk 00:01:52]} {[%emt 00:00:35]} 39. Nxg3
{[%clk 00:15:35]} {[%emt 00:00:08]} Rh3 {[%clk 00:01:47]} {[%emt 00:00:36]} 40.
Ra7 {[%clk 00:09:50]} {[%emt 00:06:14]} Kf8 {[%clk 00:00:51]} {[%emt 00:01:27]}
41. Rbb7 {[%clk 00:04:23]} {[%emt 00:05:56]} Bh4 {[%clk 00:25:17]} {[%emt
00:06:04]} 42. Ne4 {[%clk 00:33:13]} {[%emt 00:01:40]} Bd8 {[%clk 00:23:59]}
{[%emt 00:01:49]} 43. Be3 {[%clk 00:22:15]} {[%emt 00:11:28]} Rh1 {[%clk
00:22:33]} {[%emt 00:01:56]} 44. Bg5 {[%clk 00:21:23]} {[%emt 00:01:22]} Bxg5
{[%clk 00:21:31]} {[%emt 00:01:32]} 45. Nfxg5 {[%clk 00:21:38]} {[%emt
00:00:15]} Rc1 {[%clk 00:20:50]} {[%emt 00:01:10]} 46. Kd3 {[%clk 00:17:51]}
{[%emt 00:04:18]} Ra1 {[%clk 00:11:25]} {[%emt 00:09:54]} 47. Rxa5 {[%emt
00:00:54]} 1-0

[Event "Elitserien 2019/2020, round 7-9"]
[Site "Elite stadshotellet, Kungsgatan 6, Vaxjo, Sweden"]
[Date "2020.10.18"]
[Round "3.15"]
[White "Landgren, Andreas"]
[Black "Wisdahl, Peter"]
[Result "1-0"]
[TimeControl "90 minutes for 40 moves + 30 minutes for the rest of the game + 30 seconds per move from move one."]
[WhiteTitle "FM"]
[WhiteFideId "1704311"]
[BlackFideId "1714023"]
[WhiteElo "2239"]
[BlackElo "2007"]

1. d4 {[%clk 01:30:58]} Nf6 {[%clk 01:30:37]} {[%emt 00:00:23]} 2. c4 {[%clk
01:31:21]} {[%emt 00:00:07]} e6 {[%clk 01:31:01]} {[%emt 00:00:06]} 3. Nc3
{[%clk 01:31:45]} {[%emt 00:00:06]} Bb4 {[%clk 01:31:25]} {[%emt 00:00:06]} 4.
Qc2 {[%clk 01:32:07]} {[%emt 00:00:08]} O-O {[%clk 01:31:38]} {[%emt 00:00:16]}
5. a3 {[%clk 01:32:33]} {[%emt 00:00:05]} Bxc3+ {[%clk 01:31:56]} {[%emt
00:00:11]} 6. Qxc3 {[%clk 01:33:00]} {[%emt 00:00:03]} b6 {[%clk 01:32:16]}
{[%emt 00:00:10]} 7. Bg5 {[%clk 01:33:23]} {[%emt 00:00:06]} h6 {[%clk
01:30:58]} {[%emt 00:01:48]} 8. Bh4 {[%clk 01:32:08]} {[%emt 00:01:45]} Bb7
{[%clk 01:30:18]} {[%emt 00:01:10]} 9. f3 {[%clk 01:32:27]} {[%emt 00:00:12]}
d5 {[%clk 01:24:05]} {[%emt 00:06:43]} 10. e3 {[%clk 01:32:08]} {[%emt
00:00:48]} Nbd7 {[%clk 01:23:55]} {[%emt 00:00:40]} 11. cxd5 {[%clk 01:32:17]}
{[%emt 00:00:22]} exd5 {[%clk 01:23:56]} {[%emt 00:00:29]} 12. Bd3 {[%clk
01:31:55]} {[%emt 00:00:51]} c5 {[%clk 01:06:08]} {[%emt 00:18:18]} 13. Ne2
{[%clk 01:29:50]} {[%emt 00:02:36]} Re8 {[%clk 00:55:22]} {[%emt 00:11:16]} 14.
Bf2 {[%clk 01:20:24]} {[%emt 00:09:56]} c4 {[%clk 00:52:31]} {[%emt 00:03:21]}
15. Bc2 {[%clk 01:19:32]} {[%emt 00:01:22]} b5 {[%clk 00:51:59]} {[%emt
00:01:01]} 16. O-O {[%clk 01:18:50]} {[%emt 00:01:12]} a5 {[%clk 00:51:36]}
{[%emt 00:00:54]} 17. Ng3 {[%clk 01:09:22]} {[%emt 00:09:59]} Qb6 {[%clk
00:50:28]} {[%emt 00:01:36]} 18. Rac1 {[%clk 00:56:32]} {[%emt 00:13:21]} b4
{[%clk 00:50:12]} {[%emt 00:00:46]} 19. axb4 {[%clk 00:56:55]} {[%emt
00:00:09]} axb4 {[%clk 00:50:22]} {[%emt 00:00:19]} 20. Qd2 {[%clk 00:57:08]}
{[%emt 00:00:16]} Ra2 {[%clk 00:50:28]} {[%emt 00:00:24]} 21. Rb1 {[%clk
00:44:44]} {[%emt 00:12:55]} Ba6 {[%clk 00:29:49]} {[%emt 00:21:09]} 22. Rfc1
{[%clk 00:26:18]} {[%emt 00:18:56]} Qa5 {[%clk 00:26:37]} {[%emt 00:03:41]} 23.
Be1 {[%clk 00:20:59]} {[%emt 00:05:49]} Rxb2 {[%clk 00:24:35]} {[%emt
00:02:32]} 24. Bh7+ {[%clk 00:20:33]} {[%emt 00:00:56]} Nxh7 {[%clk 00:23:46]}
{[%emt 00:01:18]} 25. Qxb2 {[%clk 00:20:56]} {[%emt 00:00:07]} Rxe3 {[%clk
00:23:10]} {[%emt 00:01:06]} 26. Bxb4 {[%clk 00:19:01]} {[%emt 00:02:26]} Qc7
{[%clk 00:22:17]} {[%emt 00:01:22]} 27. Nf5 {[%clk 00:18:18]} {[%emt 00:01:13]}
Re8 {[%clk 00:10:11]} {[%emt 00:12:37]} 28. Ne7+ {[%clk 00:18:18]} {[%emt
00:00:30]} Kh8 {[%clk 00:10:33]} {[%emt 00:00:07]} 29. Nxd5 {[%clk 00:18:29]}
{[%emt 00:00:20]} Qc6 {[%clk 00:10:18]} {[%emt 00:00:44]} 30. Nc3 {[%clk
00:17:56]} {[%emt 00:01:04]} Ng5 {[%clk 00:09:41]} {[%emt 00:01:06]} 31. Qf2
{[%clk 00:17:00]} {[%emt 00:01:26]} Nf6 {[%clk 00:08:42]} {[%emt 00:01:31]} 32.
Re1 {[%clk 00:14:31]} {[%emt 00:02:59]} Rxe1+ {[%clk 00:08:57]} {[%emt
00:00:15]} 33. Rxe1 {[%clk 00:12:25]} {[%emt 00:02:36]} Bb7 {[%clk 00:08:59]}
{[%emt 00:00:28]} 34. Be7 {[%clk 00:10:11]} {[%emt 00:02:43]} Nd5 {[%clk
00:07:06]} {[%emt 00:02:23]} 35. Nxd5 {[%clk 00:09:45]} {[%emt 00:00:57]} Qxd5
{[%clk 00:07:19]} {[%emt 00:00:17]} 36. Re5 {[%clk 00:09:50]} {[%emt 00:00:25]}
Qc6 {[%clk 00:06:13]} {[%emt 00:01:36]} 37. Bxg5 {[%clk 00:09:42]} {[%emt
00:00:37]} hxg5 {[%clk 00:06:34]} {[%emt 00:00:09]} 38. Rxg5 {[%clk 00:09:16]}
{[%emt 00:00:56]} Qh6 {[%clk 00:05:55]} {[%emt 00:01:09]} 39. Re5 {[%clk
00:07:28]} {[%emt 00:02:19]} Qc1+ {[%clk 00:03:20]} {[%emt 00:03:05]} 40. Qe1
{[%clk 00:05:28]} {[%emt 00:02:29]} Qf4 {[%clk 00:02:17]} {[%emt 00:01:26]} 41.
Rh5+ {[%clk 00:03:52]} {[%emt 00:00:25]} 1-0

[Event "Elitserien 2019/2020, round 7-9"]
[Site "Elite stadshotellet, Kungsgatan 6, Vaxjo, Sweden"]
[Date "2020.10.16"]
[Round "1.1"]
[White "Jepson, Christian"]
[Black "Linusson, Pelle"]
[Result "1-0"]
[TimeControl "90 minutes for 40 moves + 30 minutes for the rest of the game + 30 seconds per move from move one."]
[WhiteTitle "IM"]
[WhiteFideId "1701185"]
[BlackFideId "1709062"]
[WhiteElo "2384"]
[BlackElo "2249"]

1. Nf3 {[%clk 01:30:56]} {[%emt 00:00:03]} g6 {[%clk 01:30:15]} {[%emt
00:00:46]} 2. e4 {[%clk 01:30:42]} {[%emt 00:00:43]} d6 {[%clk 01:30:31]}
{[%emt 00:00:14]} 3. d4 {[%clk 01:31:04]} {[%emt 00:00:08]} Nf6 {[%clk
01:30:47]} {[%emt 00:00:15]} 4. Nc3 {[%clk 01:29:34]} {[%emt 00:01:58]} Bg7
{[%clk 01:30:35]} {[%emt 00:00:43]} 5. Be2 {[%clk 01:27:21]} {[%emt 00:02:43]}
O-O {[%clk 01:30:11]} {[%emt 00:00:53]} 6. O-O {[%clk 01:27:32]} {[%emt
00:00:19]} Nc6 {[%clk 01:29:59]} {[%emt 00:00:43]} 7. d5 {[%clk 01:26:57]}
{[%emt 00:01:05]} Ne5 {[%clk 01:28:30]} {[%emt 00:02:00]} 8. Nxe5 {[%clk
01:24:45]} {[%emt 00:02:42]} dxe5 {[%clk 01:28:50]} {[%emt 00:00:11]} 9. Bg5
{[%clk 01:24:04]} {[%emt 00:01:10]} Qd6 {[%clk 01:25:08]} {[%emt 00:04:12]} 10.
Nb5 {[%clk 00:51:31]} {[%emt 00:33:03]} Qd7 {[%clk 01:22:16]} {[%emt 00:03:23]}
11. f3 {[%clk 00:50:59]} {[%emt 00:01:01]} Nh5 {[%clk 01:05:56]} {[%emt
00:16:50]} 12. g3 {[%clk 00:42:42]} {[%emt 00:08:48]} f5 {[%clk 00:43:01]}
{[%emt 00:23:25]} 13. exf5 {[%clk 00:37:29]} {[%emt 00:05:43]} gxf5 {[%clk
00:25:42]} {[%emt 00:17:49]} 14. c4 {[%clk 00:35:12]} {[%emt 00:02:46]} Bf6
{[%clk 00:21:05]} {[%emt 00:05:06]} 15. Bh6 {[%clk 00:32:23]} {[%emt 00:03:20]}
Bg7 {[%clk 00:18:39]} {[%emt 00:02:56]} 16. Bxg7 {[%clk 00:29:57]} {[%emt
00:02:56]} Nxg7 {[%clk 00:19:04]} {[%emt 00:00:06]} 17. f4 {[%clk 00:29:20]}
{[%emt 00:01:06]} c6 {[%clk 00:16:23]} {[%emt 00:03:12]} 18. Nc3 {[%clk
00:27:52]} {[%emt 00:01:56]} e4 {[%clk 00:14:25]} {[%emt 00:02:29]} 19. Qd4
{[%clk 00:28:09]} {[%emt 00:00:13]} Qd6 {[%clk 00:08:13]} {[%emt 00:06:41]} 20.
c5 {[%clk 00:26:42]} {[%emt 00:01:57]} Qf6 {[%clk 00:08:35]} {[%emt 00:00:09]}
21. Rad1 {[%clk 00:25:02]} {[%emt 00:02:10]} Qxd4+ {[%clk 00:08:27]} {[%emt
00:00:38]} 22. Rxd4 {[%clk 00:25:27]} {[%emt 00:00:04]} cxd5 {[%clk 00:06:34]}
{[%emt 00:02:24]} 23. Nxd5 {[%clk 00:25:43]} {[%emt 00:00:14]} Ne6 {[%clk
00:02:21]} {[%emt 00:04:43]} 24. Rc4 {[%clk 00:22:02]} {[%emt 00:04:10]} Kf7
{[%clk 00:02:42]} {[%emt 00:00:10]} 25. Bh5+ {[%clk 00:21:21]} {[%emt
00:01:11]} Kg7 {[%clk 00:02:53]} {[%emt 00:00:19]} 26. Nxe7 {[%clk 00:21:29]}
{[%emt 00:00:22]} Bd7 {[%clk 00:03:12]} {[%emt 00:00:12]} 27. Rd1 {[%clk
00:13:57]} {[%emt 00:08:01]} Bb5 {[%clk 00:03:29]} {[%emt 00:00:13]} 28. Rb4
{[%clk 00:13:34]} {[%emt 00:00:54]} Bd3 {[%clk 00:03:54]} {[%emt 00:00:04]} 29.
Rxb7 {[%clk 00:08:12]} {[%emt 00:05:52]} Kh6 {[%clk 00:03:05]} {[%emt
00:01:19]} 30. Bf3 {[%clk 00:08:04]} {[%emt 00:00:38]} exf3 {[%clk 00:01:27]}
{[%emt 00:02:08]} 31. Rxd3 {[%clk 00:08:12]} {[%emt 00:00:21]} Nxc5 {[%clk
00:01:52]} {[%emt 00:00:05]} 32. Nxf5+ {[%clk 00:05:57]} {[%emt 00:02:45]} Kh5
{[%clk 00:02:18]} {[%emt 00:00:05]} 33. Rxh7+ {[%clk 00:04:45]} {[%emt
00:01:42]} Kg6 {[%clk 00:02:40]} {[%emt 00:00:04]} 34. Rh6+ {[%clk 00:04:45]}
{[%emt 00:00:34]} Kxf5 {[%clk 00:02:30]} {[%emt 00:00:40]} 35. Rd5+ {[%clk
00:04:58]} {[%emt 00:00:17]} Kg4 {[%clk 00:02:47]} {[%emt 00:00:13]} 36. Rg5#
{[%emt 00:00:24]} 1-0

[Event "Elitserien 2019/2020, round 7-9"]
[Site "Elite stadshotellet, Kungsgatan 6, Vaxjo, Sweden"]
[Date "2020.10.16"]
[Round "1.2"]
[White "Haitin, Ilja"]
[Black "Brynell, Stellan"]
[Result "1/2-1/2"]
[TimeControl "90 minutes for 40 moves + 30 minutes for the rest of the game + 30 seconds per move from move one."]
[WhiteTitle "FM"]
[BlackTitle "GM"]
[WhiteFideId "4501764"]
[BlackFideId "1700219"]
[WhiteElo "2349"]
[BlackElo "2409"]

1. d4 {[%clk 01:30:57]} {[%emt 00:00:02]} Nf6 {[%clk 01:30:37]} {[%emt
00:00:22]} 2. c4 {[%clk 01:31:23]} {[%emt 00:00:05]} e6 {[%clk 01:30:51]}
{[%emt 00:00:16]} 3. Nc3 {[%clk 01:31:50]} {[%emt 00:00:04]} Bb4 {[%clk
01:31:09]} {[%emt 00:00:12]} 4. e3 {[%clk 01:32:16]} {[%emt 00:00:05]} O-O
{[%clk 01:30:07]} {[%emt 00:01:32]} 5. Nge2 {[%clk 01:32:35]} {[%emt 00:00:12]}
d5 {[%clk 01:27:46]} {[%emt 00:02:50]} 6. cxd5 {[%clk 01:32:54]} {[%emt
00:00:12]} exd5 {[%clk 01:27:14]} {[%emt 00:01:01]} 7. g3 {[%clk 01:33:18]}
{[%emt 00:00:07]} c6 {[%clk 01:22:27]} {[%emt 00:05:16]} 8. Bg2 {[%clk
01:33:41]} {[%emt 00:00:08]} a5 {[%clk 01:21:23]} {[%emt 00:01:33]} 9. O-O
{[%clk 01:33:40]} {[%emt 00:00:31]} Re8 {[%clk 01:20:46]} {[%emt 00:01:06]} 10.
f3 {[%clk 01:33:16]} {[%emt 00:00:55]} c5 {[%clk 01:01:01]} {[%emt 00:20:14]}
11. a3 {[%clk 01:30:35]} {[%emt 00:03:12]} cxd4 {[%clk 01:01:21]} {[%emt
00:00:10]} 12. axb4 {[%clk 01:05:49]} {[%emt 00:25:15]} dxc3 {[%clk 01:00:52]}
{[%emt 00:00:59]} 13. Nxc3 {[%clk 00:57:59]} {[%emt 00:08:21]} Nc6 {[%clk
00:57:57]} {[%emt 00:03:24]} 14. bxa5 {[%clk 00:54:42]} {[%emt 00:03:47]} Rxa5
{[%clk 00:57:36]} {[%emt 00:00:51]} 15. Rxa5 {[%clk 00:52:11]} {[%emt
00:03:01]} Qxa5 {[%clk 00:57:17]} {[%emt 00:00:49]} 16. Qa4 {[%clk 00:35:12]}
{[%emt 00:17:30]} Qxa4 {[%clk 00:41:40]} {[%emt 00:16:07]} 17. Nxa4 {[%clk
00:35:34]} {[%emt 00:00:08]} Bf5 {[%clk 00:41:49]} {[%emt 00:00:20]} 18. Nb6
{[%clk 00:30:07]} {[%emt 00:05:57]} Ne5 {[%clk 00:20:06]} {[%emt 00:22:12]} 19.
f4 {[%clk 00:25:27]} {[%emt 00:05:10]} Nd3 {[%clk 00:19:24]} {[%emt 00:01:11]}
20. Nxd5 {[%clk 00:23:36]} {[%emt 00:02:23]} Nxd5 {[%clk 00:06:35]} {[%emt
00:13:19]} 21. Bxd5 {[%clk 00:23:56]} {[%emt 00:00:10]} b6 {[%clk 00:04:01]}
{[%emt 00:03:03]} 22. Bd2 {[%clk 00:13:23]} {[%emt 00:11:04]} Nxb2 {[%clk
00:04:15]} {[%emt 00:00:15]} 23. Bc3 {[%clk 00:13:32]} {[%emt 00:00:21]} Na4
{[%clk 00:03:08]} {[%emt 00:01:37]} 24. Bd4 {[%clk 00:12:34]} {[%emt 00:01:29]}
Nc5 {[%clk 00:03:28]} {[%emt 00:00:10]} 25. Ra1 {[%clk 00:09:09]} {[%emt
00:03:55]} h5 {[%clk 00:03:34]} {[%emt 00:00:23]} 26. Ra7 {[%clk 00:06:03]}
{[%emt 00:03:36]} Be6 {[%clk 00:03:42]} {[%emt 00:00:22]} 27. Bf3 {[%clk
00:03:09]} {[%emt 00:03:24]} Bg4 {[%clk 00:03:57]} {[%emt 00:00:15]} 28. Bd5
{[%clk 00:01:58]} {[%emt 00:01:42]} Be6 {[%clk 00:04:14]} {[%emt 00:00:12]} 29.
Bf3 {[%clk 00:01:00]} {[%emt 00:01:28]} Bg4 {[%clk 00:04:37]} {[%emt 00:00:07]}
30. Bd5 {[%clk 00:00:42]} {[%emt 00:00:48]} 1/2-1/2

[Event "Elitserien 2019/2020, round 7-9"]
[Site "Elite stadshotellet, Kungsgatan 6, Vaxjo, Sweden"]
[Date "2020.10.16"]
[Round "1.3"]
[White "Lindgren, Philip"]
[Black "Krupenski, Juri"]
[Result "1/2-1/2"]
[TimeControl "90 minutes for 40 moves + 30 minutes for the rest of the game + 30 seconds per move from move one."]
[WhiteTitle "IM"]
[BlackTitle "IM"]
[WhiteFideId "1713230"]
[BlackFideId "4501101"]
[WhiteElo "2356"]
[BlackElo "2386"]

1. d4 {[%clk 01:30:54]} {[%emt 00:00:04]} Nf6 {[%clk 01:30:44]} {[%emt
00:00:17]} 2. c4 {[%clk 01:31:03]} {[%emt 00:00:20]} e6 {[%clk 01:31:09]}
{[%emt 00:00:06]} 3. Nf3 {[%clk 01:30:59]} {[%emt 00:00:34]} b6 {[%clk
01:30:46]} {[%emt 00:00:53]} 4. g3 {[%clk 01:31:06]} {[%emt 00:00:23]} Ba6
{[%clk 01:31:10]} {[%emt 00:00:07]} 5. b3 {[%clk 01:29:27]} {[%emt 00:02:08]}
Bb4+ {[%clk 01:31:31]} {[%emt 00:00:10]} 6. Bd2 {[%clk 01:29:33]} {[%emt
00:00:23]} Be7 {[%clk 01:31:54]} {[%emt 00:00:07]} 7. Bg2 {[%clk 01:27:14]}
{[%emt 00:02:49]} d5 {[%clk 01:31:44]} {[%emt 00:00:41]} 8. Ne5 {[%clk
01:22:46]} {[%emt 00:04:58]} Bb7 {[%clk 01:14:30]} {[%emt 00:17:45]} 9. Nc3
{[%clk 01:21:22]} {[%emt 00:01:53]} O-O {[%clk 01:12:09]} {[%emt 00:02:51]} 10.
O-O {[%clk 01:20:20]} {[%emt 00:01:32]} Nbd7 {[%clk 01:09:52]} {[%emt
00:02:47]} 11. Bf4 {[%clk 01:12:51]} {[%emt 00:07:59]} Re8 {[%clk 01:00:42]}
{[%emt 00:09:40]} 12. Rc1 {[%clk 01:08:35]} {[%emt 00:04:46]} c6 {[%clk
00:39:49]} {[%emt 00:21:23]} 13. e4 {[%clk 01:02:48]} {[%emt 00:06:16]} Nf8
{[%clk 00:39:48]} {[%emt 00:00:32]} 14. Qd3 {[%clk 00:53:33]} {[%emt 00:09:45]}
h6 {[%clk 00:29:27]} {[%emt 00:10:52]} 15. Rfd1 {[%clk 00:51:00]} {[%emt
00:03:02]} Bb4 {[%clk 00:27:50]} {[%emt 00:02:07]} 16. exd5 {[%clk 00:43:20]}
{[%emt 00:08:09]} exd5 {[%clk 00:27:56]} {[%emt 00:00:24]} 17. cxd5 {[%clk
00:42:00]} {[%emt 00:01:50]} cxd5 {[%clk 00:28:20]} {[%emt 00:00:06]} 18. Nb5
{[%clk 00:34:47]} {[%emt 00:07:43]} Ne6 {[%clk 00:26:52]} {[%emt 00:01:59]} 19.
Bd2 {[%clk 00:34:28]} {[%emt 00:00:48]} Bf8 {[%clk 00:19:46]} {[%emt 00:07:37]}
20. Bh3 {[%clk 00:29:15]} {[%emt 00:05:43]} Ba6 {[%clk 00:18:50]} {[%emt
00:01:26]} 21. a4 {[%clk 00:28:38]} {[%emt 00:01:06]} Ne4 {[%clk 00:16:28]}
{[%emt 00:02:53]} 22. Be3 {[%clk 00:24:10]} {[%emt 00:04:57]} Qe7 {[%clk
00:11:23]} {[%emt 00:05:35]} 23. Rc6 {[%clk 00:20:11]} {[%emt 00:04:30]} Qb4
{[%clk 00:06:43]} {[%emt 00:05:10]} 24. Rdc1 {[%clk 00:12:43]} {[%emt
00:07:58]} Bd6 {[%clk 00:04:13]} {[%emt 00:03:00]} 25. Bg2 {[%clk 00:07:57]}
{[%emt 00:05:15]} Bxe5 {[%clk 00:02:30]} {[%emt 00:02:14]} 26. dxe5 {[%clk
00:07:45]} {[%emt 00:00:42]} Rad8 {[%clk 00:01:50]} {[%emt 00:01:09]} 27. Bxe4
{[%clk 00:05:13]} {[%emt 00:03:02]} dxe4 {[%clk 00:02:17]} {[%emt 00:00:04]} 28.
Qc4 {[%clk 00:01:08]} {[%emt 00:04:35]} Qa5 {[%clk 00:02:15]} {[%emt 00:00:32]}
29. Qc3 {[%clk 00:00:49]} {[%emt 00:00:49]} Qxc3 {[%clk 00:02:27]} {[%emt
00:00:19]} 30. Nxc3 {[%clk 00:00:41]} {[%emt 00:00:38]} Nd4 {[%clk 00:01:19]}
{[%emt 00:01:39]} 31. Bxd4 {[%clk 00:00:37]} {[%emt 00:00:33]} Rxd4 {[%clk
00:01:45]} {[%emt 00:00:04]} 32. Rc7 {[%clk 00:00:35]} {[%emt 00:00:32]} Rxe5
{[%clk 00:01:47]} {[%emt 00:00:28]} 33. Rxa7 {[%clk 00:00:52]} {[%emt
00:00:14]} Bd3 {[%clk 00:01:55]} {[%emt 00:00:22]} 34. Ra8+ {[%clk 00:00:36]}
{[%emt 00:00:46]} Kh7 {[%clk 00:02:20]} {[%emt 00:00:05]} 35. Ra7 {[%clk
00:00:35]} {[%emt 00:00:31]} Rc5 {[%clk 00:01:28]} {[%emt 00:01:22]} 36. Rxf7
{[%clk 00:00:31]} {[%emt 00:00:34]} Rb4 {[%clk 00:01:53]} {[%emt 00:00:05]} 37.
Na2 {[%clk 00:00:33]} {[%emt 00:00:28]} Rxb3 {[%clk 00:02:14]} {[%emt
00:00:10]} 38. Re1 {[%clk 00:00:32]} {[%emt 00:00:31]} Ra3 {[%clk 00:00:39]}
{[%emt 00:02:05]} 39. Nc1 {[%clk 00:00:33]} {[%emt 00:00:28]} Bc2 {[%clk
00:00:41]} {[%emt 00:00:29]} 40. Ne2 {[%clk 00:00:33]} {[%emt 00:00:30]} Rxa4
{[%clk 00:00:35]} {[%emt 00:00:37]} 41. Nf4 {[%clk 00:29:36]} {[%emt 00:01:26]}
b5 {[%clk 00:16:42]} {[%emt 00:14:24]} 42. Ne6 {[%clk 00:24:36]} {[%emt
00:05:28]} Rd5 {[%clk 00:08:59]} {[%emt 00:08:13]} 43. Rxg7+ {[%clk 00:19:44]}
{[%emt 00:05:22]} Kh8 {[%clk 00:09:24]} {[%emt 00:00:04]} 44. Rb7 {[%clk
00:13:39]} {[%emt 00:06:35]} b4 {[%clk 00:08:20]} {[%emt 00:01:34]} 45. f3
{[%clk 00:10:50]} {[%emt 00:03:19]} exf3 {[%clk 00:05:33]} {[%emt 00:03:18]} 46.
Rb8+ {[%clk 00:02:21]} {[%emt 00:08:59]} Kh7 {[%clk 00:05:59]} {[%emt
00:00:04]} 47. Rb7+ {[%clk 00:02:45]} {[%emt 00:00:07]} Kg8 {[%clk 00:05:28]}
{[%emt 00:00:59]} 48. Nd4 {[%clk 00:01:19]} {[%emt 00:01:56]} Bg6 {[%clk
00:05:49]} {[%emt 00:00:09]} 49. Ree7 {[%clk 00:01:26]} {[%emt 00:00:23]} Bf7
{[%clk 00:04:08]} {[%emt 00:02:11]} 50. Rxf7 {[%clk 00:00:47]} {[%emt
00:01:10]} Rxd4 {[%clk 00:04:30]} {[%emt 00:00:08]} 51. Rg7+ {[%clk 00:00:36]}
{[%emt 00:00:41]} Kh8 {[%clk 00:04:11]} {[%emt 00:00:50]} 52. Rh7+ {[%clk
00:00:44]} {[%emt 00:00:21]} Kg8 {[%clk 00:04:37]} {[%emt 00:00:04]} 53. Rhg7+
{[%clk 00:00:42]} {[%emt 00:00:31]} Kh8 {[%clk 00:04:07]} {[%emt 00:01:01]} 54.
Rh7+ {[%clk 00:00:44]} {[%emt 00:00:28]} Kg8 {[%clk 00:04:32]} {[%emt
00:00:05]} 55. Rhg7+ {[%clk 00:00:53]} {[%emt 00:00:22]} 1/2-1/2